bitfinex/quotes_BTCUSD_20230113
["timestamp","ask_amount","ask_price","bid_price","bid_amount"]
[1673645044642,0.628001,19493.0,19492.0,0.00206]
[1673645044901,1.288205,19493.0,19492.0,0.00206]
[1673645046154,1.24844798,19493.0,19492.0,0.00206]
[1673645046406,1.24844798,19493.0,19492.0,0.00461271]
[1673645046673,0.73544398,19493.0,19492.0,0.00206]
[1673645046921,0.58824398,19493.0,19492.0,0.00206]
[1673645048883,0.68824398,19493.0,19492.0,0.00206]
[1673645049601,0.98590594,19493.0,19492.0,0.00206]
[1673645049843,1.801609,19493.0,19492.0,0.00206]
[1673645050326,1.701609,19493.0,19492.0,0.00206]
[1673645050566,2.001609,19493.0,19492.0,0.00206]
[1673645051297,2.147709,19493.0,19492.0,0.00206]
[1673645051797,2.147709,19493.0,19492.0,6e-05]
[1673645052285,2.212709,19493.0,19492.0,0.01006]
[1673645052535,2.221209,19493.0,19492.0,0.01006]
[1673645052775,2.190209,19493.0,19492.0,0.01006]
[1673645053019,1.927509,19493.0,19492.0,0.01006]
[1673645053998,1.23948125,19493.0,19492.0,0.01]
[1673645054234,0.63947725,19493.0,19492.0,0.01]
[1673645054486,0.53947725,19493.0,19492.0,0.01]
[1673645054730,0.11147625,19493.0,19492.0,0.01]
[1673645054981,0.11147625,19493.0,19492.0,0.13082]
[1673645055229,0.11147625,19493.0,19492.0,0.18198831]
[1673645055947,0.11147625,19493.0,19492.0,0.06116831]
[1673645056459,0.04647625,19493.0,19492.0,0.05116831]
[1673645056695,0.10647625,19493.0,19492.0,0.06216831]
[1673645057178,0.06,19493.0,19492.0,0.75839821]
[1673645057958,0.06,19493.0,19492.0,0.011]
[1673645058203,0.10620068,19493.0,19492.0,0.13182]
[1673645058467,0.10620068,19493.0,19492.0,0.011]
[1673645058750,0.10620068,19493.0,19490.0,0.66493963]
[1673645058751,0.04620068,19493.0,19490.0,0.66493963]
[1673645059003,0.04620068,19493.0,19492.0,0.01]
[1673645059004,0.31650562,19493.0,19492.0,0.01]
[1673645059248,0.10620068,19493.0,19492.0,0.01]
[1673645059500,0.04620068,19493.0,19490.0,1.03100424]
[1673645059739,0.005,19493.0,19492.0,0.104]
[1673645059979,0.005,19493.0,19492.0,0.42817]
[1673645060233,0.005,19493.0,19492.0,1.45423]
[1673645060463,0.005,19493.0,19492.0,1.13006]
[1673645060718,0.005,19493.0,19492.0,1.30147707]
[1673645061494,0.05702427,19493.0,19492.0,1.13006]
[1673645061728,0.05202427,19493.0,19491.0,0.513049]
[1673645061968,0.05702427,19493.0,19490.0,0.637068]
[1673645062212,0.26732921,19493.0,19490.0,0.637068]
[1673645062465,0.04379776,19492.0,19490.0,0.513068]
[1673645062941,0.04379776,19492.0,19490.0,0.68558064]
[1673645063199,0.04379776,19492.0,19490.0,0.68758064]
[1673645063443,0.04379776,19492.0,19490.0,1.19866364]
[1673645063840,0.612995,19494.0,19490.0,1.19866364]
[1673645064062,0.05554939,19493.0,19491.0,0.54183487]
[1673645064278,0.05554939,19493.0,19491.0,1.29427048]
[1673645064760,0.001,19492.0,19491.0,1.05488287]
[1673645064969,0.05554939,19493.0,19491.0,1.56793987]
[1673645065209,0.05654939,19493.0,19491.0,1.59893987]
[1673645065351,0.05554939,19493.0,19491.0,1.56793987]
[1673645065534,0.05554939,19493.0,19492.0,0.00012182]
[1673645066167,0.05654939,19493.0,19492.0,0.00012182]
[1673645066402,0.05554939,19493.0,19492.0,0.00012182]
[1673645066658,0.05299436,19492.0,19491.0,6e-05]
[1673645066903,0.05299436,19492.0,19491.0,0.00018182]
[1673645067140,0.05299436,19492.0,19491.0,6e-05]
[1673645067614,1.18622436,19492.0,19491.0,6e-05]
[1673645067878,1.28622436,19492.0,19491.0,6e-05]
[1673645068382,1.29122436,19492.0,19491.0,0.10406]
[1673645069176,1.80425436,19492.0,19491.0,0.10406]
[1673645070406,1.80425436,19492.0,19491.0,0.05406]
[1673645072330,1.70425436,19492.0,19491.0,0.059466]
[1673645073307,0.67819436,19492.0,19491.0,0.059466]
[1673645073827,0.005,19492.0,19491.0,1.68860588]
[1673645074069,0.005,19492.0,19491.0,1.49971888]
[1673645074551,0.005,19492.0,19491.0,2.01277588]
[1673645075516,0.005,19492.0,19491.0,2.23499784]
[1673645076043,0.005,19492.0,19491.0,0.20680185]
[1673645076044,0.04752366,19492.0,19491.0,0.20680185]
[1673645076289,0.04752366,19492.0,19491.0,0.05406]
[1673645077560,0.04752366,19492.0,19491.0,0.20680185]
[1673645077807,0.04752366,19492.0,19491.0,0.71985885]
[1673645079292,0.005,19492.0,19491.0,0.92465578]
[1673645079501,0.005,19492.0,19491.0,2.69623379]
[1673645080759,0.05680968,19492.0,19491.0,1.080174]
[1673645082225,0.05680968,19492.0,19491.0,0.567117]
[1673645082717,0.512949,19496.0,19495.0,6.72073432]
[1673645082961,1.025874,19496.0,19495.0,6.72073432]
[1673645083236,1.538799,19496.0,19495.0,6.72073432]
[1673645083722,1.54623443,19496.0,19495.0,6.72073432]
[1673645084490,1.64723443,19496.0,19495.0,6.72873432]
[1673645085186,1.13428543,19496.0,19495.0,6.72873432]
[1673645087438,1.12838543,19496.0,19495.0,6.72873432]
[1673645089113,1.12095,19496.0,19495.0,6.72873432]
[1673645089330,1.12095,19496.0,19495.0,6.7288671]
[1673645089979,1.12095,19496.0,19495.0,6.7099151]
[1673645090418,1.12095,19496.0,19495.0,6.7049151]
[1673645090664,0.512912,19497.0,19496.0,0.1]
[1673645090906,0.512906,19497.0,19496.0,0.64290114]
[1673645091139,1.113597,19498.0,19496.0,0.64290114]
[1673645091380,0.600691,19498.0,19496.0,0.64290114]
[1673645091876,1.113584,19498.0,19496.0,0.70799125]
[1673645092121,0.008,19497.0,19496.0,0.65390114]
[1673645092368,0.600697,19498.0,19496.0,0.64290114]
[1673645092603,0.512899,19497.0,19496.0,0.65390114]
[1673645092883,1.325798,19497.0,19496.0,0.011]
[1673645093123,2.24097709,19497.0,19496.0,0.011]
[1673645093372,1.734997,19497.0,19496.0,0.011]
[1673645093627,1.734997,19497.0,19494.0,0.58437329]
[1673645093864,1.655197,19497.0,19496.0,0.011]
[1673645094153,1.742997,19497.0,19496.0,0.011]
[1673645094374,1.742997,19497.0,19494.0,0.58437329]
[1673645094620,0.0872,19496.0,19492.0,0.82918211]
[1673645094868,1.84917594,19495.0,19492.0,0.15303766]
[1673645095076,0.0874,19494.0,19492.0,0.15303766]
[1673645095284,0.513004,19493.0,19492.0,0.15303766]
[1673645095563,1.026008,19493.0,19492.0,0.15303766]
[1673645095813,1.126008,19493.0,19492.0,0.15303766]
[1673645096068,1.609608,19493.0,19492.0,0.15303766]
[1673645096813,1.609608,19493.0,19492.0,0.16403766]
[1673645097077,1.609608,19493.0,19492.0,0.15303766]
[1673645097302,1.622608,19493.0,19492.0,0.16303766]
[1673645097547,1.76775074,19493.0,19492.0,0.16303766]
[1673645097800,1.76775074,19493.0,19492.0,0.01]
[1673645098057,1.75475074,19493.0,19491.0,0.2293564]
[1673645098330,0.5748,19492.0,19491.0,0.2293564]
[1673645098575,1.60086,19492.0,19491.0,0.2293564]
[1673645098822,1.60936,19492.0,19491.0,0.2293564]
[1673645099048,1.60936,19492.0,19489.0,0.00454934]
[1673645099325,1.60936,19492.0,19490.0,0.00013281]
[1673645099326,0.0878,19491.0,19490.0,0.00013281]
[1673645099568,0.0878,19491.0,19489.0,0.00454934]
[1673645099569,1.113914,19491.0,19489.0,0.00454934]
[1673645100311,1.213914,19491.0,19489.0,0.00454934]
[1673645100792,1.113914,19491.0,19489.0,0.00454934]
[1673645101032,1.113914,19491.0,19490.0,0.12095281]
[1673645101033,0.507657,19491.0,19490.0,0.12095281]
[1673645101273,0.507657,19491.0,19490.0,0.7758948]
[1673645101530,0.135,19491.0,19490.0,0.7758948]
[1673645101773,0.513035,19492.0,19490.0,0.7758948]
[1673645102014,0.613035,19492.0,19490.0,0.7758948]
[1673645102260,0.613035,19492.0,19490.0,0.20568268]
[1673645102261,0.135,19491.0,19490.0,0.20568268]
[1673645102513,0.135,19491.0,19490.0,0.12195281]
[1673645103011,0.135,19491.0,19490.0,0.72741538]
[1673645103220,0.135,19491.0,19490.0,0.66231741]
[1673645103499,0.135,19491.0,19490.0,0.6621846]
[1673645103749,0.613022,19493.0,19490.0,0.6611846]
[1673645104003,0.136,19492.0,19490.0,0.6641846]
[1673645104278,0.613024,19493.0,19490.0,0.6611846]
[1673645104524,0.01,19491.0,19490.0,0.6611846]
[1673645105018,0.01,19491.0,19490.0,0.6651846]
[1673645105774,0.513003,19494.0,19490.0,0.98365793]
[1673645106025,0.612972,19495.0,19493.0,0.0878]
[1673645106026,0.1,19495.0,19493.0,0.0878]
[1673645106268,0.91386884,19498.0,19494.0,0.226536]
[1673645106513,0.91386884,19498.0,19495.0,0.0226536]
[1673645106514,0.17051542,19498.0,19495.0,0.0226536]
[1673645106752,0.1,19497.0,19493.0,1.3716807]
[1673645107010,0.1,19497.0,19493.0,0.885814]
[1673645107250,0.31030494,19497.0,19493.0,1.08790613]
[1673645107485,0.17051542,19498.0,19495.0,0.0872]
[1673645107733,0.01692937,19498.0,19496.0,0.00037244]
[1673645108224,0.11692937,19498.0,19496.0,0.00037244]
[1673645108465,0.137,19497.0,19496.0,0.00912968]
[1673645108712,0.26551542,19498.0,19494.0,0.65755493]
[1673645108946,0.61082036,19498.0,19496.0,0.003]
[1673645109190,0.84127978,19498.0,19496.0,0.003]
[1673645109437,0.54635447,19497.0,19496.0,8.631e-05]
[1673645109712,0.69247773,19497.0,19496.0,8.631e-05]
[1673645109961,0.6309071,19498.0,19496.0,0.0020344]
[1673645110446,0.24692937,19498.0,19496.0,0.06979096]
[1673645110687,0.11192937,19498.0,19496.0,0.06970465]
[1673645111185,0.01192937,19498.0,19497.0,0.64704501]
[1673645111426,0.01192937,19498.0,19497.0,0.15947497]
[1673645111673,0.01192937,19498.0,19497.0,0.07167497]
[1673645111916,0.14792937,19498.0,19496.0,0.67332465]
[1673645112155,0.01192937,19498.0,19496.0,0.67032465]
[1673645112397,0.14792937,19498.0,19497.0,0.003]
[1673645112639,0.01192937,19498.0,19496.0,0.60256809]
[1673645112874,0.14692937,19498.0,19497.0,0.65104042]
[1673645113350,0.14692937,19498.0,19497.0,1.16393942]
[1673645113614,0.14692937,19498.0,19497.0,1.80212596]
[1673645113876,0.01192937,19498.0,19497.0,2.32535866]
[1673645114132,0.13502937,19498.0,19497.0,2.56486781]
[1673645114378,0.021524,19501.0,19497.0,2.71625284]
[1673645114631,0.021524,19501.0,19497.0,2.38591285]
[1673645114877,0.021524,19501.0,19499.0,0.0876]
[1673645115124,0.021524,19501.0,19497.0,1.20701182]
[1673645115379,0.021524,19501.0,19498.0,1.0390917]
[1673645115645,0.021524,19501.0,19499.0,0.60113689]
[1673645115899,0.025524,19501.0,19499.0,0.60113689]
[1673645116152,0.025524,19501.0,19500.0,0.14791369]
[1673645116419,0.01756982,19502.0,19500.0,0.23571369]
[1673645116420,0.00391382,19502.0,19500.0,0.23571369]
[1673645116681,0.00391382,19502.0,19499.0,0.59703921]
[1673645116931,0.01163688,19503.0,19499.0,0.66792519]
[1673645117180,0.11367803,19501.0,19500.0,0.12347502]
[1673645117426,0.05442979,19501.0,19500.0,0.21127502]
[1673645117678,0.05442979,19501.0,19500.0,0.28818672]
[1673645117945,0.21030494,19501.0,19497.0,0.72968269]
[1673645118193,0.21880494,19501.0,19499.0,0.67169152]
[1673645118439,0.01380245,19501.0,19499.0,0.66818055]
[1673645118692,0.00530245,19501.0,19499.0,0.57793887]
[1673645118951,0.01163688,19503.0,19500.0,0.05779389]
[1673645118952,0.09266097,19503.0,19500.0,0.05779389]
[1673645119198,0.01163688,19503.0,19500.0,0.05779389]
[1673645119412,0.084765,19502.0,19500.0,0.05779389]
[1673645120412,0.1396262,19501.0,19500.0,0.06479389]
[1673645120658,0.0726262,19501.0,19500.0,0.05779389]
[1673645120903,0.0726262,19501.0,19500.0,0.06779389]
[1673645121216,0.0726262,19501.0,19499.0,0.55199694]
[1673645121468,0.1396262,19501.0,19500.0,0.007]
[1673645121722,0.1396262,19501.0,19500.0,0.00713274]
[1673645121978,0.1396262,19501.0,19500.0,0.007]
[1673645122233,0.0726262,19501.0,19498.0,0.75792152]
[1673645122474,0.0085,19500.0,19496.0,0.74647932]
[1673645122726,0.21030494,19499.0,19496.0,0.74647932]
[1673645123004,0.21030494,19498.0,19494.0,3.02866314]
[1673645123243,0.21880494,19497.0,19495.0,0.00019]
[1673645123505,0.07850074,19497.0,19495.0,0.51937134]
[1673645123751,0.1,19498.0,19495.0,0.51950411]
[1673645123988,0.19895972,19498.0,19495.0,0.51937134]
[1673645124340,0.08956368,19497.0,19494.0,0.117]
[1673645124495,0.29836862,19497.0,19495.0,0.68909432]
[1673645124772,0.08806368,19497.0,19493.0,0.59315179]
[1673645125001,0.08806368,19497.0,19495.0,0.051]
[1673645125002,0.21030494,19496.0,19495.0,0.051]
[1673645125257,0.512925,19496.0,19492.0,0.58711468]
[1673645125524,0.21030494,19495.0,19492.0,0.58711468]
[1673645125752,0.18295993,19494.0,19492.0,0.00019]
[1673645126001,0.39326487,19494.0,19492.0,0.00019]
[1673645126252,0.18295993,19494.0,19492.0,0.00019]
[1673645126494,0.18295993,19494.0,19491.0,0.66176611]
[1673645126749,0.39326487,19494.0,19491.0,0.00427393]
[1673645127248,0.69994393,19494.0,19492.0,0.011]
[1673645127497,0.69594393,19494.0,19491.0,0.52217781]
[1673645127741,0.70594393,19494.0,19491.0,0.04027393]
[1673645127995,0.0869,19493.0,19491.0,0.04027393]
[1673645128254,0.51303,19492.0,19491.0,0.04027393]
[1673645128506,0.72333494,19492.0,19491.0,0.04027393]
[1673645128759,0.62153,19492.0,19491.0,0.04027393]
[1673645129743,1.3004772,19492.0,19491.0,0.00427393]
[1673645129988,1.3004772,19492.0,19491.0,0.03627393]
[1673645129989,1.35275727,19492.0,19491.0,0.03627393]
[1673645130229,1.35275727,19492.0,19489.0,0.00454934]
[1673645130230,0.1,19491.0,19489.0,0.00454934]
[1673645130476,1.875249,19490.0,19489.0,0.00454934]
[1673645130713,2.175249,19490.0,19489.0,0.00454934]
[1673645131198,0.102,19489.0,19486.0,0.00510448]
[1673645131440,0.1,19487.0,19486.0,0.00510448]
[1673645131688,0.913162,19487.0,19486.0,0.00510448]
[1673645131933,0.921662,19487.0,19486.0,0.00510448]
[1673645132665,0.621662,19487.0,19486.0,0.00510448]
[1673645133160,0.756662,19487.0,19486.0,0.00910448]
[1673645133395,1.056662,19487.0,19486.0,0.00910448]
[1673645133641,0.756662,19487.0,19486.0,0.00910448]
[1673645133878,0.9437354,19487.0,19486.0,0.00910448]
[1673645134129,1.056662,19487.0,19486.0,0.00910448]
[1673645134398,0.83772716,19487.0,19486.0,0.00910448]
[1673645135155,0.135,19487.0,19486.0,0.12992448]
[1673645135395,0.135,19487.0,19486.0,0.8055623]
[1673645135645,0.135,19487.0,19486.0,0.12992448]
[1673645135890,0.135,19487.0,19486.0,0.59977952]
[1673645136126,0.10936,19487.0,19486.0,0.62407463]
[1673645136369,0.10936,19487.0,19486.0,0.59977952]
[1673645137092,0.10936,19487.0,19486.0,1.01174952]
[1673645137336,0.10936,19487.0,19486.0,1.63579518]
[1673645137567,0.10936,19487.0,19486.0,2.24898318]
[1673645137804,0.10936,19487.0,19486.0,2.5356683]
[1673645138054,0.002,19489.0,19486.0,2.0054356]
[1673645138294,0.002,19489.0,19488.0,0.087]
[1673645138554,0.002,19489.0,19488.0,0.411134]
[1673645138810,0.002,19489.0,19488.0,0.324134]
[1673645139072,0.002,19489.0,19488.0,0.0837287]
[1673645139320,0.002,19489.0,19488.0,0.1715287]
[1673645139595,0.013,19489.0,19488.0,1.2313248]
[1673645141313,0.013,19489.0,19488.0,1.1475961]
[1673645142046,0.013,19489.0,19488.0,1.0975961]
[1673645142286,0.13188,19489.0,19488.0,0.1078]
[1673645142526,0.2269916,19489.0,19488.0,0.1078]
[1673645142780,0.2269916,19489.0,19488.0,0.07]
[1673645143537,0.45103066,19489.0,19488.0,0.07]
[1673645143772,1.37690294,19489.0,19488.0,0.00195032]
[1673645144022,1.566598,19489.0,19488.0,0.00195032]
[1673645144260,1.37518655,19489.0,19488.0,0.00195032]
[1673645144734,1.67518655,19489.0,19488.0,0.00195032]
[1673645144970,1.566598,19489.0,19488.0,0.00195032]
[1673645145465,1.7635686,19489.0,19486.0,0.00510448]
[1673645145708,0.1,19487.0,19486.0,0.00510448]
[1673645145952,1.639486,19487.0,19486.0,0.00510448]
[1673645146205,1.939486,19487.0,19486.0,0.00510448]
[1673645146704,1.639486,19487.0,19486.0,0.00510448]
[1673645146951,1.773486,19487.0,19486.0,0.00510448]
[1673645147192,2.073486,19487.0,19486.0,0.00510448]
[1673645147440,1.88448728,19487.0,19486.0,0.00510448]
[1673645147679,1.88448728,19487.0,19486.0,0.00291392]
[1673645148174,1.88448728,19487.0,19486.0,0.72600407]
[1673645148175,0.234,19487.0,19486.0,0.72600407]
[1673645148437,0.134,19487.0,19486.0,0.88627238]
[1673645148677,0.134,19487.0,19486.0,1.21044238]
[1673645148982,0.134,19487.0,19486.0,1.13450544]
[1673645149231,0.134,19487.0,19486.0,2.46088144]
[1673645149490,0.002,19489.0,19487.0,0.1]
[1673645149754,0.002,19489.0,19488.0,2.1731307]
[1673645149992,0.01692937,19498.0,19489.0,0.1]
[1673645150246,0.07940782,19497.0,19494.0,0.0876]
[1673645150733,0.02835864,19497.0,19494.0,0.0876]
[1673645152227,0.05235864,19497.0,19494.0,0.0876]
[1673645152498,0.05174116,19497.0,19494.0,0.1476598]
[1673645152746,0.05174116,19497.0,19492.0,0.700824]
[1673645152747,0.02323859,19496.0,19492.0,0.53514698]
[1673645152991,0.21030494,19495.0,19493.0,0.66619185]
[1673645153240,0.12323859,19496.0,19494.0,0.045]
[1673645153498,0.0085,19495.0,19493.0,0.66619185]
[1673645154046,0.21880494,19495.0,19491.0,0.87736712]
[1673645154291,0.31030494,19494.0,19488.0,0.0975]
[1673645154596,0.31030494,19494.0,19491.0,0.53312649]
[1673645154597,0.21030494,19493.0,19491.0,0.53312649]
[1673645154837,0.613174,19494.0,19491.0,0.53312649]
[1673645155058,0.0085,19493.0,19492.0,0.70746434]
[1673645155361,0.0085,19493.0,19489.0,0.09755]
[1673645155548,0.21880494,19493.0,19490.0,0.65508017]
[1673645155889,0.0269925,19494.0,19490.0,0.65428017]
[1673645156081,0.02895934,19493.0,19491.0,0.138]
[1673645156341,0.02895934,19493.0,19491.0,0.238]
[1673645156607,0.02895934,19493.0,19490.0,0.65428017]
[1673645156852,0.03295934,19493.0,19490.0,0.65428017]
[1673645157100,0.02349414,19492.0,19490.0,0.80613449]
[1673645157348,0.004,19493.0,19490.0,0.80613449]
[1673645157597,0.004,19493.0,19491.0,0.00075941]
[1673645157849,0.02729965,19492.0,19490.0,0.80613449]
[1673645158102,0.23760459,19492.0,19490.0,0.65428017]
[1673645158349,0.02729965,19492.0,19490.0,0.79228017]
[1673645158598,1.026037,19494.0,19490.0,0.72924764]
[1673645158848,1.0547739,19494.0,19491.0,0.54114949]
[1673645159097,0.004,19492.0,19490.0,0.67478702]
[1673645159346,6e-05,19494.0,19491.0,1.2813917]
[1673645159592,0.004,19492.0,19491.0,1.1935917]
[1673645159843,0.004,19492.0,19491.0,1.5177617]
[1673645160591,0.02550849,19496.0,19491.0,1.5177617]
[1673645160849,0.024,19494.0,19492.0,0.99236987]
[1673645161093,1.14109408,19502.0,19493.0,2.6523757]
[1673645161094,0.02934008,19499.0,19493.0,2.6523757]
[1673645161339,1.37114692,19502.0,19497.0,0.0878]
[1673645161340,0.02262871,19498.0,19497.0,0.0878]
[1673645161588,0.02734368,19497.0,19495.0,0.512946]
[1673645161839,0.004,19496.0,19495.0,0.512946]
[1673645162086,0.02734368,19497.0,19495.0,0.512946]
[1673645162839,0.004,19496.0,19495.0,0.650946]
[1673645163086,0.2437,19496.0,19495.0,0.138]
[1673645163336,0.2522,19496.0,19495.0,0.138]
[1673645163590,0.765125,19496.0,19495.0,0.138]
[1673645163853,1.57805,19496.0,19495.0,0.138]
[1673645164110,0.1,19495.0,19491.0,0.00019]
[1673645164368,0.21880494,19494.0,19490.0,0.67585126]
[1673645164606,0.21030494,19493.0,19490.0,0.67585126]
[1673645165597,0.21030494,19493.0,19489.0,2.73064208]
[1673645165598,0.521501,19494.0,19491.0,0.70214467]
[1673645165839,0.521501,19494.0,19489.0,3.24374808]
[1673645166092,0.018,19493.0,19489.0,3.24374808]
[1673645166337,0.25723867,19493.0,19490.0,0.64423746]
[1673645166575,0.04693373,19493.0,19490.0,0.64423746]
[1673645167081,0.0085,19492.0,19489.0,0.6422326]
[1673645167330,0.83184794,19492.0,19489.0,0.6422326]
[1673645167573,1.47343738,19492.0,19489.0,0.6422326]
[1673645167845,1.34487794,19492.0,19488.0,0.00019]
[1673645168093,1.34487794,19492.0,19490.0,0.052]
[1673645168347,1.134573,19492.0,19489.0,0.67643563]
[1673645168592,1.134573,19492.0,19489.0,0.125]
[1673645168593,1.138573,19492.0,19489.0,0.125]
[1673645168835,0.02730862,19491.0,19489.0,0.67085008]
[1673645169806,0.02730862,19491.0,19488.0,0.0873]
[1673645170356,0.02730862,19491.0,19488.0,0.67362433]
[1673645170859,0.02730862,19491.0,19488.0,1.30543606]
[1673645171103,0.02730862,19491.0,19489.0,0.125]
[1673645171354,0.0085,19490.0,19488.0,0.0873]
[1673645171597,0.0085,19490.0,19488.0,0.129]
[1673645171598,1.24500394,19490.0,19488.0,0.129]
[1673645171841,1.034699,19490.0,19488.0,0.129]
[1673645172093,0.1,19489.0,19488.0,0.129]
[1673645172341,0.0085,19490.0,19489.0,0.70656376]
[1673645172591,0.0135,19490.0,19489.0,0.70656376]
[1673645172832,0.0135,19490.0,19488.0,0.2161]
[1673645173316,0.1135,19490.0,19488.0,0.2161]
[1673645173565,0.1135,19490.0,19488.0,0.129]
[1673645173813,0.1135,19490.0,19486.0,0.00291392]
[1673645173814,1.134669,19490.0,19486.0,0.00291392]
[1673645174058,0.02905829,19489.0,19486.0,0.61606746]
[1673645174307,0.23936323,19489.0,19486.0,0.61606746]
[1673645174557,0.23936323,19489.0,19488.0,0.129]
[1673645174826,0.23936323,19489.0,19487.0,0.66173275]
[1673645174827,0.49066829,19489.0,19487.0,0.66173275]
[1673645175077,1.00877729,19489.0,19487.0,0.66173275]
[1673645175326,0.0085,19488.0,19486.0,0.00291392]
[1673645175579,0.0085,19488.0,19487.0,0.57112562]
[1673645175822,0.15271692,19491.0,19485.0,0.09227905]
[1673645176066,0.22525311,19491.0,19489.0,0.0878]
[1673645176309,0.513059,19491.0,19488.0,0.0878]
[1673645176562,0.01516705,19490.0,19487.0,0.5725861]
[1673645176804,0.73856899,19490.0,19487.0,0.5725861]
[1673645177052,0.005,19489.0,19487.0,0.7015861]
[1673645177323,0.513081,19491.0,19488.0,0.66806237]
[1673645177577,0.62171692,19492.0,19490.0,0.66173932]
[1673645177578,0.01501923,19492.0,19490.0,0.66173932]
[1673645177831,0.01520923,19492.0,19490.0,0.66173932]
[1673645178818,0.00019,19492.0,19490.0,0.66173932]
[1673645179067,0.06469,19492.0,19490.0,0.66773932]
[1673645179313,0.0085,19492.0,19490.0,0.66173932]
[1673645179541,0.0265,19492.0,19490.0,0.66173932]
[1673645179811,0.0265,19492.0,19490.0,0.73235387]
[1673645180047,0.04708373,19492.0,19490.0,0.72959388]
[1673645180284,0.02908373,19492.0,19490.0,0.07285456]
[1673645180563,0.03208373,19492.0,19490.0,0.052]
[1673645181076,0.03208373,19492.0,19490.0,0.69314041]
[1673645181077,0.0115,19492.0,19490.0,0.69314041]
[1673645181554,0.0115,19492.0,19491.0,0.61540901]
[1673645182045,0.0115,19492.0,19491.0,0.83374111]
[1673645182046,0.003,19492.0,19491.0,0.83374111]
[1673645182295,0.00019,19494.0,19491.0,1.10060111]
[1673645182537,0.00019,19494.0,19493.0,0.0878]
[1673645182786,0.00019,19494.0,19493.0,0.924938]
[1673645183034,0.00019,19494.0,19493.0,1.024938]
[1673645183275,0.22907538,19496.0,19493.0,1.1874835]
[1673645183550,0.22907538,19496.0,19495.0,0.0873]
[1673645183790,0.22907538,19496.0,19495.0,0.92435]
[1673645184039,0.22907538,19496.0,19495.0,1.02435]
[1673645184289,0.22907538,19496.0,19494.0,1.11343]
[1673645184539,0.22907538,19496.0,19495.0,0.9481855]
[1673645184809,0.23007538,19496.0,19495.0,1.4897945]
[1673645185046,0.23007538,19496.0,19495.0,1.48993244]
[1673645185291,0.23007538,19496.0,19495.0,1.4897945]
[1673645185536,0.25154136,19496.0,19495.0,0.14]
[1673645185786,0.26004136,19496.0,19495.0,0.14]
[1673645186512,0.23007538,19496.0,19495.0,1.2585428]
[1673645186786,0.23007538,19496.0,19495.0,1.266904]
[1673645186995,0.23007538,19496.0,19495.0,1.778874]
[1673645187289,0.23007538,19496.0,19495.0,2.3051067]
[1673645187527,0.23007538,19496.0,19495.0,2.6051067]
[1673645188010,0.001,19496.0,19495.0,2.6051067]
[1673645188249,0.01667436,19498.0,19496.0,0.1]
[1673645188499,0.01667436,19498.0,19497.0,0.914923]
[1673645188974,0.01667436,19498.0,19497.0,1.014923]
[1673645189246,0.01667436,19498.0,19497.0,1.5411557]
[1673645189735,0.01667436,19498.0,19497.0,1.54141159]
[1673645189985,0.01680546,19500.0,19498.0,0.70176913]
[1673645190232,0.01680546,19500.0,19499.0,0.836944]
[1673645190461,0.01680546,19500.0,19498.0,1.08825768]
[1673645190697,0.01667546,19500.0,19499.0,0.12107586]
[1673645190941,0.01667546,19500.0,19498.0,0.141]
[1673645190942,0.2269804,19500.0,19498.0,0.141]
[1673645191195,0.01787771,19499.0,19498.0,0.141]
[1673645191453,0.02637771,19499.0,19498.0,0.141]
[1673645191960,0.0085,19499.0,19498.0,0.141]
[1673645192203,0.61020256,19499.0,19494.0,2.73022168]
[1673645192445,1.03169094,19498.0,19494.0,3.3586443]
[1673645192676,0.21030494,19497.0,19494.0,2.73041168]
[1673645192918,0.1085,19496.0,19494.0,2.73041168]
[1673645193161,0.31880494,19496.0,19494.0,2.73041168]
[1673645193411,0.1085,19496.0,19495.0,0.5571946]
[1673645193691,0.53167638,19499.0,19495.0,0.5571946]
[1673645193692,0.01981238,19499.0,19497.0,0.58841782]
[1673645193935,0.0085,19498.0,19497.0,0.58841782]
[1673645194183,0.0085,19499.0,19497.0,0.58841782]
[1673645194430,0.0085,19499.0,19498.0,0.05884178]
[1673645194919,0.52553173,19502.0,19498.0,0.57062387]
[1673645195632,0.016,19499.0,19498.0,0.57062387]
[1673645196361,0.52566173,19502.0,19498.0,0.57062387]
[1673645196608,0.1,19501.0,19498.0,0.57062387]
[1673645196857,0.53366173,19502.0,19499.0,0.05706239]
[1673645197093,0.0085,19501.0,19499.0,0.05742469]
[1673645197582,0.0165,19501.0,19499.0,0.05742469]
[1673645197821,0.0085,19501.0,19500.0,0.57157849]
[1673645198066,0.00013,19502.0,19500.0,0.71058462]
[1673645198302,0.008,19501.0,19500.0,0.79838462]
[1673645198781,0.008,19501.0,19500.0,0.15070032]
[1673645199033,0.008,19501.0,19500.0,0.85223302]
[1673645199285,0.01163688,19503.0,19500.0,1.458584]
[1673645199542,0.01163688,19503.0,19501.0,0.7525117]
[1673645199814,0.01163688,19503.0,19502.0,0.15501187]
[1673645200357,0.00163688,19503.0,19502.0,0.24317411]
[1673645200636,0.00963688,19503.0,19502.0,0.63156456]
[1673645200862,0.00163688,19503.0,19502.0,0.95567456]
[1673645201143,0.00963688,19503.0,19502.0,0.64156456]
[1673645201371,0.00963688,19503.0,19502.0,1.1693921]
[1673645201658,0.00963688,19503.0,19502.0,0.85625191]
[1673645201922,0.24933688,19503.0,19502.0,0.01]
[1673645202181,0.2684763,19503.0,19502.0,0.01]
[1673645202456,0.41848888,19503.0,19502.0,0.00029287]
[1673645202714,0.5391751,19503.0,19502.0,0.00029287]
[1673645202962,0.3079751,19503.0,19498.0,0.24134]
[1673645203227,0.21880494,19502.0,19499.0,0.64088637]
[1673645203479,0.1388231,19503.0,19501.0,0.53416005]
[1673645203480,0.23262804,19503.0,19501.0,0.53416005]
[1673645203733,0.00163688,19503.0,19501.0,0.53416005]
[1673645203980,0.01013688,19503.0,19502.0,0.66341284]
[1673645204235,0.00263688,19503.0,19502.0,0.75341284]
[1673645204522,0.00263688,19503.0,19502.0,0.98911768]
[1673645204523,0.00163688,19503.0,19502.0,0.98911768]
[1673645204761,0.00263688,19503.0,19502.0,0.98911768]
[1673645205052,0.00163688,19503.0,19502.0,0.66341284]
[1673645205267,0.00263688,19503.0,19502.0,0.09]
[1673645205767,0.28793495,19503.0,19502.0,0.09]
[1673645206015,0.21738695,19503.0,19502.0,0.09]